Workbook

Sheet Sheet1
A1: 2025年下半年如皋市国有企业公开招聘总成绩及进入体检人员名单
A2: 序号 | B2: 准考证号/身份证号码 | C2: 岗位名称 | D2: 笔试 成绩 | E2: 面试一 成绩 | F2: 面试二 成绩 | G2: 适岗评价 /技能测试成绩 | H2: 总成绩 | I2: 岗位内排名 | J2: 是否进入体检 | K2: 备注
A3: 1 | B3: 51101010219 | C3: 01-档案数字化经理 | D3: 72.2 | E3: 84.92 | F3: / | G3: 74.2 | H3: =G3*0.3+E3*0.4+D3*0.3 -> 77.89 | I3: 1 | J3: 是
A4: 2 | B4: 51101010114 | C4: 01-档案数字化经理 | D4: 74.8 | E4: 79.82 | F4: / | G4: 36.2 | H4: =G4*0.3+E4*0.4+D4*0.3 -> 65.23 | K4: 技能测试不合格
A5: 3 | B5: 51101010313 | C5: 01-档案数字化经理 | D5: 76.6 | E5: 76.92 | F5: / | G5: 34.4 | H5: =G5*0.3+E5*0.4+D5*0.3 -> 64.07 | K5: 技能测试不合格
A6: 4 | B6: 51101020106 | C6: 02-无人机业务经理 | D6: 61.3 | E6: 75.2 | F6: / | G6: 93.6 | H6: =G6*0.3+E6*0.4+D6*0.3 -> 76.55 | I6: 1 | J6: 是
A7: 5 | B7: 51101030428 | C7: 03-总账会计 | D7: 58.4 | E7: 82.4 | F7: / | G7: 80.2 | H7: =G7*0.2+E7*0.4+D7*0.4 -> 72.36 | I7: 1 | J7: 是
A8: 6 | B8: 51101030416 | C8: 03-总账会计 | D8: 55.2 | E8: 79 | F8: / | G8: 76.6 | H8: 69.00
A9: 7 | B9: 51101030514 | C9: 03-总账会计 | D9: 59.4 | E9: 80 | F9: / | G9: 63.8 | H9: 68.52
A10: 8 | B10: 51101040212 | C10: 04-营销专员 | D10: 67.1 | E10: 82.02 | F10: / | G10: 39.2 | H10: 67.49 | I10: 1 | J10: 是
A11: 9 | B11: 51101040226 | C11: 04-营销专员 | D11: 60.7 | E11: 80.24 | F11: / | G11: 47.6 | H11: 65.90
A12: 10 | B12: 51101040223 | C12: 04-营销专员 | D12: 57.3 | E12: 79.56 | F12: / | G12: 35.2 | H12: 61.78
A13: 11 | B13: 51101050128 | C13: 05-营销经理 | D13: 63.9 | E13: 80.02 | F13: / | G13: 58.6 | H13: 69.29 | I13: 1 | J13: 是
A14: 12 | B14: 51101050317 | C14: 05-营销经理 | D14: 51.1 | E14: 83.48 | F14: / | G14: 71.6 | H14: 68.15
A15: 13 | B15: 51101050214 | C15: 05-营销经理 | D15: 61.5 | E15: 76.72 | F15: / | G15: 62 | H15: 67.69
A16: 14 | B16: 51101060327 | C16: 06-粮油检验员 | D16: 66.4 | E16: 80.42 | F16: / | G16: 38.4 | H16: 66.41 | I16: 1 | J16: 是
A17: 15 | B17: 51101060110 | C17: 06-粮油检验员 | D17: 64.5 | E17: 76.94 | F17: / | G17: 36.4 | H17: 63.86
A18: 16 | B18: 51101070123 | C18: 07-法务专员 | D18: 70 | E18: 83.22 | F18: / | G18: 68.2 | H18: 74.93 | I18: 1 | J18: 是
A19: 17 | B19: 51101070309 | C19: 07-法务专员 | D19: 75.2 | E19: 81.28 | F19: / | G19: 53.6 | H19: 73.31
A20: 18 | B20: 51101070228 | C20: 07-法务专员 | D20: 68.5 | E20: / | F20: / | G20: / | H20: / | K20: 一面缺考
A21: 19 | B21: 51101080405 | C21: 08-总账会计 | D21: 61.4 | E21: 77 | F21: / | G21: 76 | H21: =G21*0.2+E21*0.4+D21*0.4 -> 70.56 | I21: 1 | J21: 是
A22: 20 | B22: 51101080530 | C22: 08-总账会计 | D22: 62 | E22: 80.5 | F22: / | G22: 60.2 | H22: =G22*0.2+E22*0.4+D22*0.4 -> 69.04
A23: 21 | B23: 51101080421 | C23: 08-总账会计 | D23: 60 | E23: 72.92 | F23: / | G23: 58.6 | H23: =G23*0.2+E23*0.4+D23*0.4 -> 64.89
A24: 22 | B24: 51101090415 | C24: 09-融资专员 | D24: 52.9 | E24: 86.14 | F24: / | G24: 67.8 | H24: =G24*0.2+E24*0.4+D24*0.4 -> 69.18 | I24: 1 | J24: 是
A25: 23 | B25: 51101090425 | C25: 09-融资专员 | D25: 54.6 | E25: 77.5 | F25: / | G25: 45.4 | H25: =G25*0.2+E25*0.4+D25*0.4 -> 61.92
A26: 24 | B26: 51101090418 | C26: 09-融资专员 | D26: 53.3 | E26: / | F26: / | G26: / | H26: / | K26: 一面缺考
A27: 25 | B27: 51101100117 | C27: 10-战略投资管理部企业管理岗 | D27: 67.1 | E27: 79 | F27: / | G27: 52.6 | H27: =G27*0.2+E27*0.4+D27*0.4 -> 68.96 | I27: 1 | J27: 是
A28: 26 | B28: 320682********6278 | C28: 11-副总经理（商务方向） | D28: / | E28: 75.4 | F28: 78.1 | G28: / | H28: =AVERAGE(E28:F28) -> 76.75 | I28: 1 | J28: 是
A29: 27 | B29: 51101130331 | C29: 13-富港水处理技术员 | D29: 92 | E29: 72.8 | F29: / | G29: 65.4 | H29: =G29*0.2+E29*0.4+D29*0.4 -> 79.00 | I29: 1 | J29: 是
A30: 28 | B30: 320602********2516 | C30: 15-总账会计 | D30: / | E30: 79 | F30: 79.64 | G30: / | H30: =AVERAGE(E30:F30) -> 79.32 | I30: 1 | J30: 是
A31: 29 | B31: 320684********3694 | C31: 15-总账会计 | D31: / | E31: / | F31: / | G31: / | H31: / | K31: 一面缺考
A32: 30 | B32: 51101160407 | C32: 16-财务财会岗 | D32: 60.4 | E32: 78.2 | F32: / | G32: 56 | H32: =G32*0.2+E32*0.4+D32*0.4 -> 66.64 | I32: 1 | J32: 是
A33: 31 | B33: 51101160518 | C33: 16-财务财会岗 | D33: 64.8 | E33: 68.2 | F33: / | G33: 41.2 | H33: 61.44
A34: 32 | B34: 51101160515 | C34: 16-财务财会岗 | D34: 57 | E34: 73.12 | F34: / | G34: 35.8 | H34: 59.21
A35: 33 | B35: 51101170213 | C35: 17-安全员岗 | D35: 74.2 | E35: 77.4 | F35: / | G35: 49.4 | H35: 70.52 | I35: 1 | J35: 是
A36: 34 | B36: 51101170206 | C36: 17-安全员岗 | D36: 74.1 | E36: 76.7 | F36: / | G36: 39.2 | H36: 68.16
A37: 35 | B37: 51101170229 | C37: 17-安全员岗 | D37: 72.9 | E37: 74.42 | F37: / | G37: 44.8 | H37: 67.89
A38: 36 | B38: 51101180516 | C38: 18-工程审计岗 | D38: 47.1 | E38: 78.7 | F38: / | G38: 73.2 | H38: 64.96 | I38: 1 | J38: 是
A39: 37 | B39: 51101180512 | C39: 18-工程审计岗 | D39: 54.8 | E39: 79.32 | F39: / | G39: 55.8 | H39: 64.81
A40: 38 | B40: 51101180408 | C40: 18-工程审计岗 | D40: 44.8 | E40: 69.4 | F40: / | G40: 53.4 | H40: 56.36
A41: 39 | B41: 51101200129 | C41: 20-党群管理岗 | D41: 75.4 | E41: 73.04 | F41: / | G41: 64.6 | H41: 72.30 | I41: 1 | J41: 是
A42: 40 | B42: 51101200207 | C42: 20-党群管理岗 | D42: 75.5 | E42: 74.1 | F42: / | G42: 61.4 | H42: 72.12
A43: 41 | B43: 51101200101 | C43: 20-党群管理岗 | D43: 68.8 | E43: 77.32 | F43: / | G43: 35.8 | H43: 65.61
A44: 42 | B44: 51101210414 | C44: 21-融资管理岗 | D44: 57.9 | E44: 75.48 | F44: / | G44: 37.2 | H44: 60.79 | I44: 1 | J44: 是
A45: 43 | B45: 51101210508 | C45: 21-融资管理岗 | D45: 46.9 | E45: 67.4 | F45: / | G45: 26.2 | H45: 50.96
A46: 44 | B46: 51101220524 | C46: 22-融资管理岗 | D46: 54 | E46: 75.74 | F46: / | G46: 41 | H46: 60.10 | I46: 1 | J46: 是
A47: 45 | B47: 51101220422 | C47: 22-融资管理岗 | D47: 66.4 | E47: 61.8 | F47: / | G47: 34.4 | H47: 58.16
A48: 46 | B48: 51101220430 | C48: 22-融资管理岗 | D48: 55.4 | E48: 72.62 | F48: / | G48: 29.6 | H48: 57.13
A49: 47 | B49: 51101240217 | C49: 24-基金运营岗 | D49: 77 | E49: 74.52 | F49: / | G49: 32 | H49: 67.01 | I49: 1 | J49: 是
A50: 48 | B50: 51101240316 | C50: 24-基金运营岗 | D50: 73.2 | E50: 72.92 | F50: / | G50: 36.2 | H50: 65.69
A51: 49 | B51: 51101240113 | C51: 24-基金运营岗 | D51: 73.5 | E51: 67.94 | F51: / | G51: 26.4 | H51: 61.86
A52: 50 | B52: 51101250320 | C52: 25-招商业务岗 | D52: 64.8 | E52: 76.1 | F52: / | G52: 44 | H52: 65.16 | I52: 1 | J52: 是
A53: 51 | B53: 51101250203 | C53: 25-招商业务岗 | D53: 70 | E53: 72.5 | F53: / | G53: 27.8 | H53: 62.56
A54: 52 | B54: 51101250302 | C54: 25-招商业务岗 | D54: 54.9 | E54: 71.4 | F54: / | G54: 30.4 | H54: 56.60
A55: 53 | B55: 51101260504 | C55: 26-财务财会岗 | D55: 60.4 | E55: 74.5 | F55: / | G55: 90 | H55: 71.96 | I55: 1 | J55: 是
A56: 54 | B56: 51101260510 | C56: 26-财务财会岗 | D56: 50.2 | E56: 74.6 | F56: / | G56: 60 | H56: 61.92
A57: 55 | B57: 51101260413 | C57: 26-财务财会岗 | D57: 51.5 | E57: 70.7 | F57: / | G57: 50 | H57: 58.88
A58: 56 | B58: 520112********0019 | C58: 27-投资经理 | D58: / | E58: 74.6 | F58: 79.62 | G58: / | H58: =AVERAGE(E58:F58) -> 77.11 | I58: 1 | J58: 是
A59: 57 | B59: 220882********601X | C59: 27-投资经理 | D59: / | E59: 76.4 | F59: 77 | G59: / | H59: 76.70 | I59: 2 | J59: 是
A60: 58 | B60: 411425********5117 | C60: 27-投资经理 | D60: / | E60: 75.8 | F60: 70.1 | G60: / | H60: 72.95 | I60: 3 | J60: 是
A61: 59 | B61: 321102********1516 | C61: 27-投资经理 | D61: / | E61: 76.6 | F61: 67.9 | G61: / | H61: 72.25 | K61: 二面不合格
A62: 60 | B62: 330282********3445 | C62: 27-投资经理 | D62: / | E62: 78.8 | F62: 64.66 | G62: / | H62: 71.73 | K62: 二面不合格
A63: 61 | B63: 320683********5094 | C63: 27-投资经理 | D63: / | E63: 77.6 | F63: 56.8 | G63: / | H63: 67.20 | K63: 二面不合格
A64: 62 | B64: 510722********7890 | C64: 27-投资经理 | D64: / | E64: 72.6 | F64: / | G64: / | H64: / | K64: 二面缺考
A65: 63 | B65: 321321********341X | C65: 27-投资经理 | D65: / | E65: / | F65: / | G65: / | H65: / | K65: 一面缺考
A66: 64 | B66: 320682********0023 | C66: 27-投资经理 | D66: / | E66: / | F66: / | G66: / | H66: / | K66: 一面缺考
A67: 65 | B67: 320682********0517 | C67: 28-财务融资部副部长 | D67: / | E67: 77.2 | F67: 77.5 | G67: / | H67: =AVERAGE(E67:F67) -> 77.35 | I67: 1 | J67: 是
